bitfinex-derivatives/quotes_BNBF0:USTF0_20250603
["timestamp","ask_amount","ask_price","bid_price","bid_amount"]
[1748908801929,1.176,667.21,666.84,1.49150349]
[1748908802236,1.176,667.21,665.48,0.71558831]
[1748908802237,1.176,667.21,666.87,1.49150349]
[1748908802836,1.176,667.21,666.86,1.49150349]
[1748908803031,1.176,667.21,666.85,1.49150349]
[1748908803233,1.176,667.21,666.87,1.49150349]
[1748908803532,1.176,667.21,666.89,1.49150349]
[1748908804439,1.176,667.21,666.9,1.49150349]
[1748908805132,1.176,667.21,666.21,3.72915298]
[1748908805133,1.176,667.21,666.92,1.49150349]
[1748908805337,1.176,667.21,666.99,1.49150349]
[1748908805642,1.176,667.21,667.0,1.49150349]
[1748908806138,1.176,667.21,666.99,1.49150349]
[1748908806339,1.176,667.21,666.98,1.49150349]
[1748908806940,1.176,667.21,666.99,1.49150349]
[1748908808144,1.176,667.21,666.97,1.49150349]
[1748908808535,1.176,667.21,666.83,1.49150349]
[1748908809639,1.176,667.21,666.72,2.23725523]
[1748908809640,1.176,667.21,666.81,1.49150349]
[1748908809840,1.176,667.21,666.72,1.49150349]
[1748908811035,1.176,667.21,665.99,3.72915298]
[1748908811238,3.74321205,666.18,665.99,3.72915298]
[1748908811743,3.74321205,666.25,665.99,3.72915298]
[1748908812139,3.74321205,666.26,665.99,3.72915298]
[1748908813040,3.74321205,666.28,665.99,3.72915298]
[1748908813640,3.74321205,666.32,665.99,3.72915298]
[1748908814042,3.74321205,666.33,665.99,3.72915298]
[1748908815037,3.74321205,666.29,665.99,3.72915298]
[1748908815439,3.74321205,666.22,665.99,3.72915298]
[1748908816246,3.74321205,666.23,665.99,3.72915298]
[1748908816941,3.74321205,666.29,665.99,3.72915298]
[1748908817346,3.74321205,666.32,665.99,3.72915298]
[1748908817740,3.74321205,666.29,665.99,3.72915298]
[1748908818148,3.74321205,666.3,665.99,3.72915298]
[1748908818746,3.74321205,666.31,665.99,3.72915298]
[1748908819651,3.74321205,666.34,665.99,3.72915298]
[1748908820043,3.74321205,666.31,665.99,3.72915298]
[1748908820444,3.74321205,666.32,665.99,3.72915298]
[1748908821345,3.74321205,666.28,665.99,3.72915298]
[1748908822347,3.74321205,666.29,665.99,3.72915298]
[1748908823152,3.74321205,666.34,665.99,3.72915298]
[1748908826451,3.74321205,666.28,665.99,3.72915298]
[1748908827255,3.74321205,666.29,665.99,3.72915298]
[1748908828254,3.74321205,666.48,665.99,3.72915298]
[1748908828451,3.74321205,666.46,665.99,3.72915298]
[1748908828850,3.74321205,666.49,665.99,3.72915298]
[1748908829355,5.23988824,666.81,665.99,3.72915298]
[1748908829356,3.74321205,666.52,665.99,3.72915298]
[1748908830655,3.74321205,666.51,665.99,3.72915298]
[1748908831659,3.74321205,666.52,665.99,3.72915298]
[1748908832160,3.74321205,666.5,665.99,3.72915298]
[1748908832657,3.74321205,666.47,665.99,3.72915298]
[1748908833056,3.74321205,666.19,665.99,3.72915298]
[1748908833656,3.74321205,666.11,665.99,3.72915298]
[1748908833855,3.74321205,666.16,665.99,3.72915298]
[1748908834462,3.74321205,666.23,665.99,3.72915298]
[1748908834859,3.74321205,666.19,665.99,3.72915298]
[1748908835358,3.74321205,666.07,665.99,3.72915298]
[1748908836763,3.74321205,666.1,665.99,3.72915298]
[1748908837157,3.74321205,666.21,665.99,3.72915298]
[1748908837561,3.74321205,666.2,665.99,3.72915298]
[1748908838664,3.74321205,666.24,665.99,3.72915298]
[1748908841270,3.74321205,666.23,665.99,3.72915298]
[1748908842071,3.74321205,666.24,665.99,3.72915298]
[1748908842670,5.23988824,666.5,665.99,3.72915298]
[1748908842671,3.74321205,666.25,665.99,3.72915298]
[1748908844072,3.74321205,666.24,665.99,3.72915298]
[1748908844869,3.74321205,666.28,665.99,3.72915298]
[1748908846669,3.74321205,666.22,665.99,3.72915298]
[1748908847275,3.74321205,666.21,665.99,3.72915298]
[1748908848276,3.74321205,666.16,665.99,3.72915298]
[1748908852376,3.74321205,666.14,665.99,3.72915298]
[1748908854681,3.74321205,666.06,665.99,3.72915298]
[1748908855079,5.23988824,666.37,665.99,3.72915298]
[1748908855477,3.74321205,666.47,665.99,3.72915298]
[1748908855880,3.74321205,666.48,665.99,3.72915298]
[1748908856274,3.74321205,666.5,665.99,3.72915298]
[1748908856681,3.74321205,666.52,665.99,3.72915298]
[1748908857176,3.74321205,666.55,665.99,3.72915298]
[1748908857579,3.74321205,666.54,665.99,3.72915298]
[1748908858677,3.74321205,666.53,665.99,3.72915298]
[1748908859477,3.74321205,666.57,665.99,3.72915298]
[1748908859875,3.74321205,666.58,665.99,3.72915298]
[1748908861178,3.74321205,666.63,665.99,3.72915298]
[1748908861381,2.24485007,666.1,665.99,3.72915298]
[1748908861583,1.49473973,666.0,665.99,3.72915298]
[1748908862077,1.49473973,666.01,665.99,3.72915298]
[1748908862278,2.24485007,666.12,665.99,3.72915298]
[1748908862479,2.24485007,666.13,665.99,3.72915298]
[1748908862679,1.49473973,666.18,665.99,3.72915298]
[1748908862884,1.49473973,666.17,665.99,3.72915298]
[1748908863179,1.49473973,666.16,665.99,3.72915298]
[1748908863383,1.49473973,666.17,665.99,3.72915298]
[1748908864179,1.49473973,666.15,665.99,3.72915298]
[1748908864581,2.24485007,666.11,665.99,3.72915298]
[1748908864782,2.24485007,666.12,665.99,3.72915298]
[1748908864987,2.24485007,666.13,665.99,3.72915298]
[1748908865583,1.49225619,666.01,665.99,3.72915298]
[1748908866486,2.24485007,666.11,665.99,3.72915298]
[1748908866687,2.24485007,666.1,665.99,3.72915298]
[1748908867183,2.24485007,666.12,665.99,3.72915298]
[1748908867682,2.24485007,666.1,665.99,3.72915298]
[1748908867882,2.24485007,666.07,665.99,3.72915298]
[1748908868085,2.24485007,666.04,665.99,3.72915298]
[1748908868282,2.24485007,666.03,665.99,3.72915298]
[1748908868885,3.74321205,666.49,665.99,3.72915298]
[1748908868886,2.24485007,666.01,665.99,3.72915298]
[1748908869487,3.74321205,666.46,665.99,3.72915298]
[1748908869488,2.24485007,666.02,665.99,3.72915298]
[1748908869682,2.24485007,666.01,665.99,3.72915298]
[1748908870088,2.24485007,666.02,665.99,3.72915298]
[1748908870283,2.24485007,666.01,665.99,3.72915298]
[1748908870483,2.24485007,666.12,665.99,3.72915298]
[1748908871187,2.24485007,666.11,665.99,3.72915298]
[1748908871997,3.74321205,666.69,665.99,3.72915298]
[1748908872183,3.74321205,666.44,665.99,3.72915298]
[1748908872382,5.23988824,666.98,665.99,3.72915298]
[1748908872383,3.74321205,666.41,665.99,3.72915298]
[1748908872884,3.74321205,666.39,665.99,3.72915298]
[1748908873286,3.74321205,666.38,665.99,3.72915298]
[1748908873684,2.23781015,666.03,665.99,3.72915298]
[1748908873890,2.23781015,666.01,665.99,3.72915298]
[1748908875087,2.23781015,666.01,666.0,0.71149546]
[1748908875285,2.23781015,666.01,665.99,3.72915298]
[1748908875793,2.23781015,666.01,666.0,0.71149864]
[1748908876091,3.74321205,666.39,665.99,3.72915298]
[1748908876891,3.74321205,666.41,665.99,3.72915298]
[1748908877392,3.74321205,666.35,665.99,3.72915298]
[1748908877792,3.74321205,666.38,665.99,3.72915298]
[1748908878195,3.74321205,666.32,665.99,3.72915298]
[1748908879690,3.74321205,666.45,665.99,3.72915298]
[1748908880098,3.74321205,666.46,665.99,3.72915298]
[1748908881102,3.74321205,666.31,665.99,3.72915298]
[1748908881498,3.74321205,666.3,665.99,3.72915298]
[1748908881903,3.74321205,666.33,665.99,3.72915298]
[1748908882403,3.74321205,666.3,665.99,3.72915298]
[1748908882799,3.74321205,666.33,665.99,3.72915298]
[1748908883405,3.74321205,666.34,665.99,3.72915298]
[1748908883701,0.26120733,666.25,665.99,3.72915298]
[1748908895014,1.49315038,666.17,666.0,0.65842643]
[1748908895610,1.49315038,666.19,666.0,0.65842643]
[1748908895915,1.11934992,666.04,666.01,1.31661235]
[1748908896113,1.11934992,666.03,666.01,1.31661235]
[1748908896308,1.11934992,666.03,666.02,1.97480844]
[1748908896511,1.11934992,666.05,666.02,1.3165307]
[1748908896709,1.11934992,666.05,666.03,0.65823201]
[1748908896909,1.11934992,666.05,666.02,0.65826962]
[1748908897114,1.11934992,666.04,666.03,0.65821033]
[1748908897309,1.11934992,666.04,666.02,0.65826962]
[1748908897615,1.11887951,666.05,666.02,0.65826962]
[1748908897813,1.11886958,666.06,666.02,0.65826962]
[1748908898012,1.11886958,666.06,666.03,0.66037807]
[1748908898314,2.23984619,666.42,666.04,0.66039118]
[1748908898510,1.11866736,666.06,666.04,0.66039118]
[1748908898912,1.49155648,666.19,666.05,0.66038952]
[1748908899112,1.49155648,666.19,666.04,0.66039118]
[1748908899514,1.49155648,666.19,666.05,0.66038403]
[1748908899815,1.49155648,666.18,666.06,0.66038544]
[1748908900009,1.49155648,666.18,666.07,0.66039174]
[1748908900213,1.49155648,666.18,666.08,0.66039184]
[1748908900409,1.49155648,666.19,666.06,0.66038544]
[1748908901313,1.49155648,666.22,666.07,0.6603172]
[1748908901509,1.49155648,666.22,666.07,0.66039351]
[1748908901714,1.49155648,666.22,666.08,0.66031677]
[1748908901908,1.49155648,666.22,666.09,0.66031498]
[1748908902109,1.49155648,666.22,666.1,0.66031667]
[1748908902310,1.49155648,666.22,666.08,0.66031677]
[1748908902311,1.49155648,666.23,666.11,0.66029372]
[1748908902514,1.49155648,666.23,666.08,0.66031677]
[1748908902714,1.49155648,666.23,666.09,0.66249677]
[1748908902914,1.49155648,666.23,666.1,0.66249803]
[1748908903117,1.49155648,666.23,666.08,0.66031677]
[1748908903415,1.49155648,666.23,666.09,0.66250544]
[1748908903611,1.49155648,666.23,666.08,0.66031677]
[1748908904209,1.49155648,666.23,666.09,0.66250471]
[1748908905012,2.23984619,666.39,666.09,0.66250471]
[1748908905618,2.23984619,666.39,666.1,0.6633752]
[1748908905812,2.23984619,666.39,666.09,0.66250471]
[1748908906412,2.23984619,666.39,666.1,0.65590678]
[1748908907011,2.23984619,666.39,666.11,0.65597399]
[1748908907212,0.26116813,666.55,666.1,0.65590678]
[1748908907416,0.26116813,666.55,666.11,0.65597058]
[1748908907712,0.26116813,666.55,666.1,0.65590678]
[1748908907913,0.26116813,666.55,666.11,0.6559754]
[1748908908115,0.26116813,666.55,666.12,0.65596089]
[1748908908316,0.26116813,666.55,666.13,0.65596089]
[1748908908514,0.26116813,666.55,666.14,0.65490818]
[1748908908818,0.26116813,666.55,666.15,0.65491131]
[1748908909117,0.26116813,666.55,666.16,0.65490984]
[1748908909314,0.26116813,666.55,666.1,0.65590678]
[1748908909514,0.26116813,666.55,666.11,0.65494722]
[1748908909714,0.26116813,666.55,666.12,0.65494724]
[1748908909917,0.26116813,666.55,666.13,0.65646452]
[1748908910111,0.26116813,666.55,666.14,0.65646293]
[1748908910312,0.26116813,666.55,666.15,0.65646297]
[1748908910514,0.26116813,666.55,666.1,0.65590678]
[1748908911312,0.26116813,666.55,666.11,0.65644894]
[1748908911516,0.26116813,666.55,666.1,0.65590678]
[1748908912019,1.755,667.05,666.1,0.65590678]
[1748908912219,0.26103785,666.66,666.11,0.65646997]
[1748908912421,0.29983209,667.04,666.1,0.65590678]
[1748908912622,0.26109465,666.53,666.1,0.65590678]
[1748908912921,0.29983209,667.04,666.1,0.65590678]
[1748908913117,0.26109563,666.43,666.1,0.65590678]
[1748908913422,0.29983209,667.04,666.1,0.65590678]
[1748908913624,0.26109563,666.37,666.1,0.65590678]
[1748908913919,0.29983209,667.04,666.1,0.65590678]
[1748908915124,0.26109465,666.81,666.1,0.65590678]
[1748908916627,0.29994001,666.8,666.1,0.65590678]
[1748908919330,1.49155347,666.19,666.1,0.65590678]
[1748908920029,1.49155347,666.2,666.1,0.65590678]
[1748908920328,1.49155347,666.19,666.1,0.65590678]
[1748908920932,1.49155347,666.14,666.1,0.65590678]
[1748908921830,1.49155347,666.13,666.1,0.65590678]
[1748908922129,1.49155347,666.15,666.1,0.65590678]
[1748908922331,2.23733021,666.24,666.1,0.65590678]
[1748908922525,2.23733021,666.23,666.1,0.65590678]
[1748908922729,2.23733021,666.22,666.1,0.65590678]
[1748908923531,2.23733021,666.2,666.1,0.65590678]
[1748908924527,2.23733021,666.21,666.1,0.65590678]
[1748908924727,2.23733021,666.2,666.1,0.65590678]
[1748908925432,2.23733021,666.19,666.1,0.65590678]
[1748908926132,2.23733021,666.2,666.1,0.65590678]
[1748908926333,2.23733021,666.19,666.1,0.65590678]
[1748908926829,2.23733021,666.18,666.1,0.65590678]
[1748908927628,2.23733021,666.13,666.1,0.65590678]
[1748908928131,2.23733021,666.11,666.1,0.65590678]
[1748908928834,1.869,666.57,666.1,0.65590678]
[1748908931635,1.869,666.57,666.08,0.66031677]
[1748908931837,3.72888368,666.54,666.08,0.66031677]
[1748908932233,5.59788368,666.57,666.08,0.66031677]
[1748908932638,1.869,666.57,666.08,0.66031677]
[1748908934542,5.59788368,666.57,666.08,0.66031677]
[1748908935035,3.72888368,666.55,666.08,0.66031677]
[1748908938645,3.72888368,666.51,666.08,0.66031677]
[1748908939641,1.869,666.57,666.08,0.66031677]
[1748908942747,5.59788368,666.57,666.08,0.66031677]
[1748908942945,5.59788368,666.57,664.92,1.11437825]
[1748908943146,5.59788368,666.57,664.88,1.114326]
[1748908943346,3.72888368,666.5,664.92,1.114326]
[1748908943748,3.72888368,666.54,664.92,1.114326]
[1748908943943,4.02894069,666.54,664.91,1.114326]
[1748908944748,4.02894069,666.54,664.92,1.114326]
[1748908944950,4.02894069,666.54,664.91,1.114326]
[1748908946049,0.30006151,666.53,664.91,1.114326]
[1748908946745,0.30006151,666.53,664.77,1.48420715]
[1748908946950,0.30006151,666.53,664.91,1.11412681]
[1748908947952,0.30006151,666.53,664.9,1.11412681]
[1748908948652,0.30006151,666.53,664.89,1.11412681]
[1748908948847,0.30006151,666.53,664.9,1.11412681]
[1748908949252,0.30006151,666.53,664.89,1.11412681]
[1748908949451,0.36986306,666.52,664.89,1.11412681]
[1748908949651,0.30006151,666.53,664.89,1.11412681]
[1748908950052,0.36986381,666.52,664.89,1.11412681]
[1748908950250,0.36986381,666.51,664.89,1.11412681]
[1748908950451,2.23778063,666.12,664.65,1.48420715]
[1748908950652,2.6076559,666.11,664.83,1.11389681]
[1748908950851,0.36987527,666.1,664.83,1.11389681]
[1748908951049,2.23778063,666.11,664.83,1.11389681]
[1748908951550,2.23778063,666.12,664.82,1.11389681]
[1748908951954,0.37018787,666.11,664.82,1.11389681]
[1748908952255,2.23778063,666.12,664.82,1.11389681]
[1748908952449,2.23778063,666.09,664.8,1.11389681]
[1748908952654,0.30007051,666.51,664.73,1.11389681]
[1748908952655,2.23778063,666.08,664.73,1.11389681]
[1748908953051,0.37024902,666.07,664.73,1.11389681]
[1748908953250,0.37024921,666.06,664.71,1.11389681]
[1748908954057,0.37024921,666.06,664.72,1.11389681]
[1748908954252,0.36999156,666.05,664.53,1.48420715]
[1748908954460,0.37024921,666.06,664.72,1.11376911]
[1748908955353,0.36999223,666.05,664.72,1.11376911]
[1748908956664,1.10992215,666.05,664.88,1.11376911]
[1748908956859,0.73996914,666.05,664.91,1.11376911]
[1748908957452,0.73996914,666.05,664.92,1.11376911]
[1748908957654,2.23607819,666.0,664.99,1.11376911]
[1748908957959,2.23607819,666.01,664.89,1.48420715]
[1748908958159,2.23607819,666.01,664.25,4.18354242]
[1748908958160,2.23607819,666.03,664.98,1.1128716]
[1748908958359,0.73996914,666.05,664.97,1.1128716]
[1748908959461,0.50963611,666.04,664.96,1.1128716]
[1748908959663,1.49097285,666.0,664.99,1.1128716]
[1748908959960,1.49097047,666.0,664.99,1.1128716]
[1748908960161,0.73996914,666.05,664.99,1.1128716]
[1748908960563,1.49118508,666.01,665.0,1.1128716]
[1748908960766,2.00242493,666.0,664.99,1.1128716]
[1748908961066,2.00242601,666.0,665.0,1.1128716]
[1748908961261,0.73996914,666.05,665.01,1.1128716]
[1748908961660,1.49139848,666.03,665.03,1.1128716]
[1748908961858,0.51123897,666.04,664.93,1.48420715]
[1748908962060,0.51123897,666.04,665.11,1.11323115]
[1748908962863,2.00263745,666.04,665.12,1.11323115]
[1748908963263,1.49139848,666.03,665.13,1.11323115]
[1748908963865,2.00263745,666.04,665.13,1.11323115]
[1748908964165,1.49139848,666.03,665.13,1.11323115]
[1748908964364,1.49139848,666.03,665.16,1.11323115]
[1748908964763,0.51123897,666.04,665.17,1.11323115]
[1748908964764,2.00263745,666.04,665.17,1.11323115]
[1748908965361,0.51123897,666.04,665.18,1.11323115]
[1748908965665,2.00263745,666.04,665.18,1.11375197]
[1748908965865,0.51123897,666.04,665.17,1.11375197]
[1748908966865,0.51123897,666.04,665.18,1.11375197]
[1748908967562,2.00263745,666.04,665.17,1.11375197]
[1748908967761,1.49139848,666.02,665.18,1.11375197]
[1748908968766,0.51123897,666.04,665.18,1.11375197]
[1748908968767,1.49139848,666.03,665.18,1.11375197]
[1748908968963,1.49139848,666.02,665.18,1.11375197]
[1748908969168,1.49139848,666.02,665.06,1.48420715]
[1748908969367,1.49139848,666.02,665.18,1.11392981]
[1748908970470,1.49139848,666.03,665.18,1.11392981]
[1748908970670,1.49139848,666.02,665.18,1.11392981]
[1748908972371,1.49139848,666.02,665.18,1.11407165]
[1748908972573,1.49139848,666.03,665.18,1.11407165]
[1748908972871,1.49139848,666.03,665.18,1.11407574]
[1748908973073,1.49139848,666.03,665.18,1.11407644]
[1748908973268,1.49139848,666.03,665.17,1.11407644]
[1748908973873,1.49139848,666.03,665.05,1.48420715]
[1748908974069,1.1195225,666.01,665.09,1.11413995]
[1748908974373,1.1195225,666.01,665.1,1.11413995]
[1748908976270,1.1195225,666.0,665.09,1.11413995]
[1748908976968,1.11968944,666.01,665.11,1.11451533]
[1748908978274,0.51123897,666.04,665.15,1.11451533]
[1748908978469,0.51123897,666.04,663.93,3.71051789]
[1748908978470,0.51123897,666.04,665.16,1.11451533]
[1748908979569,0.51123897,666.04,665.17,1.11451533]
[1748908980475,0.51123897,666.04,664.97,1.48420715]
[1748908980675,0.51123897,666.04,665.17,1.11449932]
[1748908980976,0.51123897,666.04,665.18,1.11449932]
[1748908981169,0.51123897,666.04,665.17,1.11449932]
[1748908981370,0.51123897,666.04,665.18,1.11449932]
[1748908981872,0.51123897,666.04,665.19,1.11449932]
[1748908982475,0.51123897,666.04,665.2,1.11449932]
[1748908982779,0.51123897,666.04,665.19,1.11449932]
[1748908982978,0.51123897,666.04,664.99,1.48420715]
[1748908983178,0.51123897,666.04,665.2,1.11489377]
[1748908983880,1.6311038,666.04,665.26,1.11489377]
[1748908984274,1.6311038,666.04,665.33,1.11489377]
[1748908984275,0.51123897,666.04,665.33,1.11489377]
[1748908984475,0.51123897,666.04,665.18,1.48420715]
[1748908984476,0.51123897,666.04,665.32,1.11489377]
[1748908985277,0.51123897,666.04,665.33,1.11489377]
[1748908986778,0.51123897,666.04,665.33,1.11482987]
[1748908987979,0.51123897,666.04,665.33,1.11477455]
[1748908988174,0.51123897,666.04,665.19,1.48420715]
[1748908988175,0.51123897,666.04,665.32,1.11477455]
[1748908988376,0.51123897,666.04,664.51,3.71051789]
[1748908988377,0.51123897,666.04,665.01,2.22631073]
[1748908988577,0.51123897,666.04,665.31,1.11477207]
[1748908989574,0.51123897,666.04,665.3,1.11477207]
[1748908990480,0.51123897,666.04,665.3,2.22938705]
[1748908990675,0.51123897,666.04,665.3,1.11461498]
[1748908990878,0.51123897,666.04,665.31,1.11461498]
[1748908992175,0.51123897,666.04,665.3,1.11461498]
[1748908992877,0.51123897,666.04,665.26,1.11461498]
[1748908993281,1.11913202,666.03,665.26,1.11461498]
[1748908993784,0.51123897,666.04,665.26,1.11461498]
[1748908993981,0.51123897,666.04,665.21,1.11461498]
[1748908994174,0.51123897,666.04,665.08,1.48636276]
[1748908994381,2.00387393,666.04,665.21,1.11468251]
[1748908995079,2.00387393,666.04,665.2,1.11468251]
[1748908995583,1.49263496,666.03,665.2,1.11468251]
[1748908996082,2.00387393,666.04,665.2,1.11468251]
[1748908996683,1.49263496,666.03,665.2,1.11468251]
[1748908996882,2.00387393,666.04,665.2,1.11468251]
[1748908997779,1.49263496,666.03,665.2,1.11468251]
[1748908997983,2.00387393,666.04,665.2,1.11468251]
[1748908998378,2.00387393,666.04,665.18,1.11468251]
[1748908998577,0.51123897,666.04,665.18,1.11468251]
[1748908998782,0.51123897,666.04,665.15,1.11468251]
[1748908999185,0.51123897,666.04,665.14,1.11468251]
[1748909001676,0.51123897,666.04,665.0,1.48636276]
[1748909001879,1.11887321,666.0,665.15,1.11484738]
[1748909002484,0.51123897,666.04,665.15,1.11484738]
[1748909002679,1.11888609,666.0,665.12,1.11484738]
[1748909003285,1.11888609,666.01,665.13,1.11484738]
[1748909003583,1.11888609,666.01,665.17,1.11484738]
[1748909003786,0.51123897,666.04,665.21,1.11484738]
[1748909004087,1.63012506,666.04,665.21,1.11484738]
[1748909004486,1.63012506,666.04,665.22,1.11484738]
[1748909004786,0.51123897,666.04,665.22,1.11484738]
[1748909004986,1.63012506,666.04,665.23,1.11484738]
[1748909005185,0.51123897,666.04,665.23,1.11484738]
[1748909005385,0.51123897,666.04,665.08,1.48636276]
[1748909005585,0.51123897,666.04,665.23,1.11423144]
[1748909005983,0.51123897,666.04,665.24,1.11423144]
[1748909006789,0.51123897,666.04,665.23,1.11423144]
[1748909008286,1.1188863,666.01,665.28,1.11423144]
[1748909008883,1.1188863,666.01,665.27,1.11423144]
[1748909009184,1.11911722,666.01,665.27,1.11445372]
[1748909009593,0.51123897,666.04,665.23,1.11445372]
[1748909010291,0.51123897,666.04,664.46,3.71051789]
[1748909010292,1.49263496,666.03,665.18,1.11445372]
[1748909010689,1.49263496,666.02,665.18,1.11445372]
[1748909010995,1.49263496,666.02,665.17,1.11445372]
[1748909011189,1.49263496,666.02,665.18,1.11445372]
[1748909011895,1.49263496,666.0,665.17,1.11445372]
[1748909012289,1.49263496,666.0,665.18,1.11445372]
[1748909012496,0.51123897,666.04,665.18,1.11445372]
[1748909012994,0.50563085,666.03,665.18,1.11550843]
[1748909013193,0.51123897,666.04,665.19,1.11550843]
[1748909014192,0.50562905,666.03,665.2,1.11550843]
[1748909014393,0.51123897,666.04,665.2,1.11550843]
[1748909015194,0.51123897,666.04,665.21,1.11550843]
[1748909015195,1.01177279,666.03,665.21,1.11550843]
[1748909015395,0.50614063,666.02,665.2,1.11550843]
[1748909015592,0.50562877,666.03,665.2,1.11550843]
[1748909015993,1.49447376,666.0,665.2,1.11550843]
[1748909016193,0.50562877,666.03,665.21,1.11550843]
[1748909016698,0.50562877,666.03,665.08,1.48636276]
[1748909016893,0.50613641,666.02,665.22,1.11693508]
[1748909017093,0.50562877,666.03,665.21,1.11693508]
[1748909017390,0.50613778,666.02,665.22,1.11693508]
[1748909017591,0.50562877,666.03,665.23,1.11693508]
[1748909018692,0.50562877,666.03,665.24,1.11693508]
[1748909019598,0.50562877,666.03,665.27,1.11693508]
[1748909019599,1.49591354,666.0,665.27,1.11693508]
[1748909019793,1.49591354,666.02,665.31,1.11693508]
[1748909020196,1.49591354,666.01,665.31,1.11693508]
[1748909020496,1.49591354,666.01,665.31,1.11711826]
[1748909020692,1.49591354,666.01,665.32,1.11711826]
[1748909022097,1.49591354,666.01,665.33,1.11711826]
[1748909022994,0.50562877,666.03,665.33,1.11711826]
[1748909022995,1.49591354,666.0,665.33,1.11711826]
[1748909023498,2.00154231,666.03,665.31,1.11711826]
[1748909024294,2.00154231,666.03,665.17,1.48636276]
[1748909024598,2.00154231,666.03,665.31,1.1174147]
[1748909025195,2.00154231,666.03,665.33,1.1174147]
[1748909025196,1.49591354,666.01,665.33,1.1174147]
[1748909025497,0.50562877,666.03,665.33,1.1174147]
[1748909025498,1.49591354,666.0,665.33,1.1174147]
[1748909028001,1.49591354,666.0,665.21,1.48636276]
[1748909028300,1.49591354,666.0,665.33,1.1174477]
[1748909028501,0.50562877,666.03,665.33,1.1174477]
[1748909029403,2.00223129,666.03,665.31,1.1174477]
[1748909031802,2.00223129,666.03,665.18,1.48636276]
[1748909032002,2.00223129,666.03,665.31,1.11741083]
[1748909032802,2.00223129,666.03,665.34,1.11741083]
[1748909032803,0.50562877,666.03,665.34,1.11741083]
[1748909032999,0.50562877,666.03,665.35,1.11741083]
[1748909033406,0.50562877,666.03,665.36,1.11741083]
[1748909034201,0.50562877,666.03,665.36,1.11744287]
[1748909035800,0.50562877,666.03,665.36,1.11756859]
[1748909036701,2.00223129,666.03,665.36,1.11756859]
[1748909036904,0.50562877,666.03,665.34,1.11756859]
[1748909037099,0.50562877,666.03,665.3,1.11756859]
[1748909037405,2.00223129,666.03,665.31,1.11756859]
[1748909037607,1.49660252,666.02,665.31,1.11756859]
[1748909039307,1.49660252,666.02,665.16,1.48636276]
[1748909039506,1.49660252,666.02,665.31,1.11799695]
[1748909040607,2.00223129,666.03,665.3,1.11799695]
[1748909041801,2.00223129,666.03,665.16,1.48636276]
[1748909042105,2.00223129,666.03,665.3,1.11821795]
[1748909043008,1.49660252,666.02,665.31,1.11821795]
[1748909045507,1.49660252,666.02,665.17,1.48636276]
[1748909045811,1.49660252,666.01,665.31,1.11848567]
[1748909046503,0.50562877,666.03,665.36,1.11848567]
[1748909046915,1.49720403,666.0,665.32,1.11848567]
[1748909047811,1.49720403,666.0,665.33,1.11848567]
[1748909048205,1.49720403,666.0,665.32,1.11848567]
[1748909048409,1.49720403,666.0,665.33,1.11848567]
[1748909048811,0.50562877,666.03,665.33,1.11848567]
[1748909049209,0.50562877,666.03,665.19,1.48636276]
[1748909049407,0.50562877,666.03,665.33,1.11872906]
[1748909049810,0.50562877,666.03,665.32,1.11872906]
[1748909050514,0.50562877,666.03,665.33,1.11872906]
[1748909050708,0.53007766,666.02,665.33,1.11872906]
[1748909050913,0.53007766,666.02,665.2,1.48636276]
[1748909050914,0.53007766,666.02,665.34,1.11872906]
[1748909052713,0.53007766,666.02,665.2,1.48636276]
[1748909052914,0.53007766,666.02,665.34,1.11927984]
[1748909053115,0.53007766,666.02,665.34,1.11928144]
[1748909053317,0.53007766,666.02,665.35,1.11928144]
[1748909054025,0.53007766,666.02,665.35,1.11930989]
[1748909056820,0.53007766,666.02,665.37,1.11930989]
[1748909057024,0.53007766,666.02,665.37,1.11937057]
[1748909058126,0.53007766,666.02,665.26,1.48636276]
[1748909058127,0.53007766,666.02,665.38,1.11937057]
[1748909058427,0.53007766,666.02,665.37,1.11937057]
[1748909059329,0.53007766,666.02,664.7,0.47302453]
[1748909059330,0.53007766,666.02,665.34,1.11937057]
[1748909059523,0.53007766,666.02,665.07,2.22631073]
[1748909059524,0.53533185,666.01,665.33,1.11937057]
[1748909059726,0.53533218,666.0,665.33,1.11937057]
[1748909060128,0.53533383,666.0,665.32,1.11937057]
[1748909060323,1.07066794,666.0,665.33,1.11937057]
[1748909060529,0.53533383,666.0,665.19,1.48636276]
[1748909060830,1.07066584,666.0,665.35,1.11949974]
[1748909061129,1.07066584,666.0,665.36,1.11949974]
[1748909061629,2.56894768,666.0,665.36,1.11949974]
[1748909061825,1.07066584,666.0,665.38,1.11949974]
[1748909062728,1.07066584,666.0,665.39,1.11949974]
[1748909063129,1.07066584,666.0,665.4,1.11949974]
[1748909063428,1.07066584,666.0,665.41,1.11949974]
[1748909064024,1.07066584,666.0,665.26,1.48636276]
[1748909064230,1.07066584,666.0,664.58,3.71051789]
[1748909064431,1.07066584,666.0,665.4,1.11933419]
[1748909064628,1.07066584,666.0,665.41,1.11933419]
[1748909065731,1.07066584,666.0,664.58,3.71051789]
[1748909065732,2.56879128,666.0,665.44,1.11933419]
[1748909065935,1.07066584,666.0,665.45,1.11933419]
[1748909066235,1.07066584,666.0,665.52,1.11933419]